[Event "January 9 Early 2024"]
[Site "https://www.chess.com"]
[Date "2024.01.11"]
[Round "3"]
[White "Ryan, Joseph"]
[Black "Aashman Gupta"]
[Result "1/2-1/2"]
[Board "292"]
[TimeControl "180+1"]
[WhiteFideId "2500426"]
[BlackFideId "45022500"]
[WhiteElo "2234"]
[BlackElo "2482"]
[WhiteTeam "IRL"]
[BlackTeam "IND"]
[WhiteClock "0:00:34"]
[BlackClock "0:00:08"]

1. e4 {[%clk 0:03:00]}  g6 {[%clk 0:02:58]} 2. d4 {[%clk 0:03:00]}  Bg7 {[%clk 0:02:58]} 3. Nc3 {[%clk 0:02:59]}  d6 {[%clk 0:02:57]} 4. Nf3 {[%clk 0:02:54]}  Bg4 {[%clk 0:02:55]} 5. Bc4 {[%clk 0:02:43]}  e6 {[%clk 0:02:44]} 6. Be2 {[%clk 0:02:38]}  Ne7 {[%clk 0:02:42]} 7. h3 {[%clk 0:02:37]}  Bxf3 {[%clk 0:02:41]} 8. Bxf3 {[%clk 0:02:38]}  O-O {[%clk 0:02:41]} 9. Be3 {[%clk 0:02:35]}  e5 {[%clk 0:02:41]} 10. dxe5 {[%clk 0:02:29]}  Bxe5 {[%clk 0:02:32]} 11. h4 {[%clk 0:02:29]}  Nbc6 {[%clk 0:02:13]} 12. h5 {[%clk 0:02:28]}  Bg7 {[%clk 0:01:51]} 13. Be2 {[%clk 0:02:22]}  Nc8 {[%clk 0:01:38]} 14. Bc4 {[%clk 0:02:20]}  Nb6 {[%clk 0:01:27]} 15. Bb3 {[%clk 0:02:20]}  Na5 {[%clk 0:01:08]} 16. hxg6 {[%clk 0:02:16]}  hxg6 {[%clk 0:01:09]} 17. Qg4 {[%clk 0:02:14]}  Nxb3 {[%clk 0:01:08]} 18. axb3 {[%clk 0:02:10]}  Re8 {[%clk 0:00:53]} 19. O-O-O {[%clk 0:02:06]}  a5 {[%clk 0:00:41]} 20. Qh3 {[%clk 0:01:57]}  a4 {[%clk 0:00:35]} 21. Qh7+ {[%clk 0:01:48]}  Kf8 {[%clk 0:00:35]} 22. Bh6 {[%clk 0:01:47]}  Bxh6+ {[%clk 0:00:35]} 23. Qxh6+ {[%clk 0:01:46]}  Ke7 {[%clk 0:00:34]} 24. Nd5+ {[%clk 0:01:38]}  Nxd5 {[%clk 0:00:25]} 25. exd5 {[%clk 0:01:39]}  Kd7 {[%clk 0:00:25]} 26. Qh3+ {[%clk 0:01:36]}  f5 {[%clk 0:00:25]} 27. bxa4 {[%clk 0:01:31]}  Qf6 {[%clk 0:00:22]} 28. Rde1 {[%clk 0:01:27]}  Rxa4 {[%clk 0:00:19]} 29. Qh7+ {[%clk 0:01:26]}  Re7 {[%clk 0:00:19]} 30. Rxe7+ {[%clk 0:01:25]}  Qxe7 {[%clk 0:00:19]} 31. Qxe7+ {[%clk 0:01:24]}  Kxe7 {[%clk 0:00:19]} 32. Rh7+ {[%clk 0:01:24]}  Kf6 {[%clk 0:00:13]} 33. Rxc7 {[%clk 0:01:23]}  Rb4 {[%clk 0:00:14]} 34. g3 {[%clk 0:01:17]}  Ke5 {[%clk 0:00:11]} 35. c4 {[%clk 0:01:14]}  Kd4 {[%clk 0:00:09]} 36. Rg7 {[%clk 0:01:07]}  Rxc4+ {[%clk 0:00:08]} 37. Kd2 {[%clk 0:01:07]}  Kxd5 {[%clk 0:00:08]} 38. Rxg6 {[%clk 0:01:07]}  b5 {[%clk 0:00:05]} 39. Rf6 {[%clk 0:01:04]}  Ke5 {[%clk 0:00:05]} 40. Rf8 {[%clk 0:01:04]}  Rd4+ {[%clk 0:00:05]} 41. Kc2 {[%clk 0:01:01]}  Rc4+ {[%clk 0:00:05]} 42. Kd3 {[%clk 0:01:01]}  Rd4+ {[%clk 0:00:04]} 43. Kc2 {[%clk 0:01:01]}  Re4 {[%clk 0:00:05]} 44. Kd3 {[%clk 0:00:58]}  Rb4 {[%clk 0:00:02]} 45. Re8+ {[%clk 0:00:57]}  Kf6 {[%clk 0:00:02]} 46. Kc3 {[%clk 0:00:55]}  Rc4+ {[%clk 0:00:03]} 47. Kd3 {[%clk 0:00:55]}  Rc5 {[%clk 0:00:02]} 48. Rd8 {[%clk 0:00:54]}  Ke5 {[%clk 0:00:03]} 49. f4+ {[%clk 0:00:53]}  Ke6 {[%clk 0:00:03]} 50. Re8+ {[%clk 0:00:52]}  Kf7 {[%clk 0:00:03]} 51. Rh8 {[%clk 0:00:50]}  Ke6 {[%clk 0:00:03]} 52. Rf8 {[%clk 0:00:46]}  Rd5+ {[%clk 0:00:03]} 53. Kc3 {[%clk 0:00:45]}  Rd1 {[%clk 0:00:03]} 54. Re8+ {[%clk 0:00:42]}  Kf7 {[%clk 0:00:03]} 55. Rd8 {[%clk 0:00:42]}  Rg1 {[%clk 0:00:02]} 56. Rxd6 {[%clk 0:00:40]}  Rxg3+ {[%clk 0:00:03]} 57. Kd4 {[%clk 0:00:40]}  Rb3 {[%clk 0:00:03]} 58. Ke5 {[%clk 0:00:38]}  Rxb2 {[%clk 0:00:03]} 59. Kxf5 {[%clk 0:00:37]}  Ke7 {[%clk 0:00:04]} 60. Rb6 {[%clk 0:00:36]}  b4 {[%clk 0:00:03]} 61. Rb7+ {[%clk 0:00:36]}  Kd6 {[%clk 0:00:04]} 62. Kf6 {[%clk 0:00:36]}  Kc5 {[%clk 0:00:04]} 63. f5 {[%clk 0:00:37]}  Rf2 {[%clk 0:00:04]} 64. Kg6 {[%clk 0:00:36]}  Kc4 {[%clk 0:00:05]} 65. f6 {[%clk 0:00:36]}  b3 {[%clk 0:00:05]} 66. f7 {[%clk 0:00:34]}  Kc3 {[%clk 0:00:06]} 67. Kg7 {[%clk 0:00:34]}  b2 {[%clk 0:00:06]} 68. f8=Q {[%clk 0:00:34]}  Rxf8 {[%clk 0:00:06]} 69. Kxf8 {[%clk 0:00:34]}  Kc2 {[%clk 0:00:07]} 70. Rxb2+ {[%clk 0:00:34]}  Kxb2 {[%clk 0:00:08]} 1/2-1/2

[Event "January 9 Early 2024"]
[Site "https://www.chess.com"]
[Date "2024.01.11"]
[Round "3"]
[White "Navara, David"]
[Black "Fier, Alexandr"]
[Result "1-0"]
[Board "294"]
[TimeControl "180+1"]
[WhiteFideId "309095"]
[BlackFideId "2107139"]
[WhiteElo "2996"]
[BlackElo "2736"]
[WhiteTeam "CZE"]
[BlackTeam "BRA"]
[WhiteClock "0:00:07"]
[BlackClock "0:00:11"]

1. d4 {[%clk 0:03:00]}  Nf6 {[%clk 0:02:58]} 2. c4 {[%clk 0:03:01]}  c5 {[%clk 0:02:58]} 3. d5 {[%clk 0:03:01]}  e6 {[%clk 0:02:59]} 4. Nc3 {[%clk 0:03:00]}  exd5 {[%clk 0:02:59]} 5. cxd5 {[%clk 0:03:01]}  d6 {[%clk 0:03:00]} 6. e4 {[%clk 0:02:57]}  g6 {[%clk 0:03:00]} 7. f4 {[%clk 0:02:57]}  Bg7 {[%clk 0:02:59]} 8. Bb5+ {[%clk 0:02:57]}  Nfd7 {[%clk 0:02:59]} 9. a4 {[%clk 0:02:57]}  Na6 {[%clk 0:02:58]} 10. Nf3 {[%clk 0:02:56]}  Nb4 {[%clk 0:02:58]} 11. O-O {[%clk 0:02:54]}  a6 {[%clk 0:02:59]} 12. Bxd7+ {[%clk 0:02:53]}  Bxd7 {[%clk 0:03:00]} 13. f5 {[%clk 0:02:52]}  O-O {[%clk 0:03:00]} 14. Bg5 {[%clk 0:02:46]}  f6 {[%clk 0:03:00]} 15. Bf4 {[%clk 0:02:46]}  gxf5 {[%clk 0:03:00]} 16. Bxd6 {[%clk 0:02:37]}  fxe4 {[%clk 0:03:01]} 17. Bxf8 {[%clk 0:02:20]}  Qxf8 {[%clk 0:02:43]} 18. Nxe4 {[%clk 0:02:20]}  f5 {[%clk 0:02:44]} 19. Nc3 {[%clk 0:02:13]}  Qd6 {[%clk 0:02:42]} 20. Ng5 {[%clk 0:02:05]}  c4 {[%clk 0:02:29]} 21. Qh5 {[%clk 0:01:57]}  Qg6 {[%clk 0:02:29]} 22. Qxg6 {[%clk 0:01:56]}  hxg6 {[%clk 0:02:30]} 23. Rf4 {[%clk 0:01:16]}  Rc8 {[%clk 0:02:22]} 24. Ne6 {[%clk 0:01:16]}  Nd3 {[%clk 0:02:17]} 25. Rf3 {[%clk 0:01:13]}  Bxe6 {[%clk 0:01:55]} 26. dxe6 {[%clk 0:01:14]}  Nxb2 {[%clk 0:01:56]} 27. Rb1 {[%clk 0:01:15]}  Nd3 {[%clk 0:01:56]} 28. Nd5 {[%clk 0:01:13]}  Re8 {[%clk 0:01:47]} 29. e7 {[%clk 0:01:03]}  Nb2 {[%clk 0:01:31]} 30. a5 {[%clk 0:00:46]}  Kf7 {[%clk 0:01:28]} 31. Kf1 {[%clk 0:00:45]}  Be5 {[%clk 0:01:18]} 32. Re3 {[%clk 0:00:39]}  Bd4 {[%clk 0:01:16]} 33. Re2 {[%clk 0:00:36]}  c3 {[%clk 0:01:16]} 34. Rc2 {[%clk 0:00:37]}  Rh8 {[%clk 0:01:03]} 35. Nxc3 {[%clk 0:00:34]}  Nc4 {[%clk 0:01:04]} 36. Nd5 {[%clk 0:00:33]}  Na3 {[%clk 0:01:04]} 37. e8=Q+ {[%clk 0:00:27]}  Kxe8 {[%clk 0:00:54]} 38. Rc8+ {[%clk 0:00:15]}  Kd7 {[%clk 0:00:51]} 39. Nb6+ {[%clk 0:00:12]}  Kd6 {[%clk 0:00:42]} 40. Rd1 {[%clk 0:00:06]}  Rxc8 {[%clk 0:00:39]} 41. Nxc8+ {[%clk 0:00:06]}  Kc5 {[%clk 0:00:36]} 42. Nd6 {[%clk 0:00:03]}  Nc2 {[%clk 0:00:34]} 43. Rc1 {[%clk 0:00:04]}  Kxd6 {[%clk 0:00:25]} 44. Rxc2 {[%clk 0:00:04]}  Be5 {[%clk 0:00:26]} 45. Kf2 {[%clk 0:00:03]}  Bxh2 {[%clk 0:00:24]} 46. g3 {[%clk 0:00:03]}  f4 {[%clk 0:00:25]} 47. g4 {[%clk 0:00:04]}  g5 {[%clk 0:00:23]} 48. Rc8 {[%clk 0:00:02]}  Bg3+ {[%clk 0:00:20]} 49. Ke2 {[%clk 0:00:02]}  Kd7 {[%clk 0:00:21]} 50. Rc5 {[%clk 0:00:02]}  Bh4 {[%clk 0:00:21]} 51. Kf3 {[%clk 0:00:02]}  Kd6 {[%clk 0:00:21]} 52. Rf5 {[%clk 0:00:03]}  Kc6 {[%clk 0:00:21]} 53. Ke4 {[%clk 0:00:03]}  Kc7 {[%clk 0:00:21]} 54. Re5 {[%clk 0:00:02]}  Kc6 {[%clk 0:00:21]} 55. Rf5 {[%clk 0:00:02]}  Kc7 {[%clk 0:00:20]} 56. Kd5 {[%clk 0:00:03]}  Be1 {[%clk 0:00:15]} 57. Rxg5 {[%clk 0:00:02]}  Bxa5 {[%clk 0:00:16]} 58. Rf5 {[%clk 0:00:02]}  Kd7 {[%clk 0:00:14]} 59. Rf7+ {[%clk 0:00:01]}  Ke8 {[%clk 0:00:15]} 60. Ke6 {[%clk 0:00:02]}  Bd2 {[%clk 0:00:13]} 61. g5 {[%clk 0:00:03]}  f3 {[%clk 0:00:14]} 62. g6 {[%clk 0:00:04]}  Bc3 {[%clk 0:00:13]} 63. Rxf3 {[%clk 0:00:04]}  Ba1 {[%clk 0:00:12]} 64. Rf7 {[%clk 0:00:05]}  b5 {[%clk 0:00:11]} 65. g7 {[%clk 0:00:06]}  Bxg7 {[%clk 0:00:11]} 66. Rxg7 {[%clk 0:00:07]} 1-0

[Event "January 9 Early 2024"]
[Site "https://www.chess.com"]
[Date "2024.01.11"]
[Round "3"]
[White "Rogov, Matfey"]
[Black "Khripachenko, Alexander"]
[Result "1/2-1/2"]
[Board "295"]
[TimeControl "180+1"]
[WhiteFideId "44191308"]
[BlackFideId "54184975"]
[WhiteElo "2556"]
[BlackElo "2820"]
[WhiteTeam "RUS"]
[BlackTeam "FID"]
[WhiteClock "0:00:05"]
[BlackClock "0:00:09"]

1. e4 {[%clk 0:03:00]}  c5 {[%clk 0:02:59]} 2. Nc3 {[%clk 0:03:00]}  e6 {[%clk 0:02:59]} 3. Nf3 {[%clk 0:03:00]}  Nc6 {[%clk 0:02:59]} 4. d4 {[%clk 0:03:00]}  cxd4 {[%clk 0:03:00]} 5. Nxd4 {[%clk 0:03:00]}  Qc7 {[%clk 0:03:01]} 6. Qd3 {[%clk 0:02:59]}  a6 {[%clk 0:02:57]} 7. Nxc6 {[%clk 0:02:58]}  Qxc6 {[%clk 0:02:57]} 8. Be2 {[%clk 0:02:53]}  b5 {[%clk 0:02:57]} 9. O-O {[%clk 0:02:48]}  Bb7 {[%clk 0:02:57]} 10. Bf3 {[%clk 0:02:35]}  Qc7 {[%clk 0:02:56]} 11. Re1 {[%clk 0:02:30]}  Ne7 {[%clk 0:02:56]} 12. Bg5 {[%clk 0:02:23]}  d6 {[%clk 0:02:40]} 13. e5 {[%clk 0:02:13]}  d5 {[%clk 0:02:35]} 14. a4 {[%clk 0:02:02]}  b4 {[%clk 0:02:35]} 15. Ne2 {[%clk 0:01:58]}  Nc6 {[%clk 0:02:34]} 16. Nd4 {[%clk 0:01:50]}  Nxe5 {[%clk 0:02:32]} 17. Qe2 {[%clk 0:01:25]}  Bd6 {[%clk 0:02:26]} 18. Rad1 {[%clk 0:01:16]}  O-O {[%clk 0:02:21]} 19. h4 {[%clk 0:01:14]}  Rfe8 {[%clk 0:02:20]} 20. h5 {[%clk 0:01:13]}  h6 {[%clk 0:02:19]} 21. Bh4 {[%clk 0:01:08]}  Nxf3+ {[%clk 0:02:14]} 22. Qxf3 {[%clk 0:00:56]}  Rac8 {[%clk 0:02:13]} 23. Rd3 {[%clk 0:00:53]}  e5 {[%clk 0:02:12]} 24. Nf5 {[%clk 0:00:51]}  Bf8 {[%clk 0:02:12]} 25. Nxh6+ {[%clk 0:00:39]}  Kh8 {[%clk 0:01:38]} 26. Nxf7+ {[%clk 0:00:39]}  Kg8 {[%clk 0:01:39]} 27. h6 {[%clk 0:00:14]}  e4 {[%clk 0:01:07]} 28. Qf5 {[%clk 0:00:12]}  gxh6 {[%clk 0:00:37]} 29. Rg3+ {[%clk 0:00:09]}  Bg7 {[%clk 0:00:37]} 30. Bf6 {[%clk 0:00:03]}  Qxg3 {[%clk 0:00:23]} 31. fxg3 {[%clk 0:00:03]}  Rf8 {[%clk 0:00:24]} 32. Bxg7 {[%clk 0:00:02]}  Rxf7 {[%clk 0:00:24]} 33. Qg4 {[%clk 0:00:02]}  Rxg7 {[%clk 0:00:24]} 34. Qe6+ {[%clk 0:00:03]}  Kh7 {[%clk 0:00:24]} 35. Rf1 {[%clk 0:00:04]}  Rc6 {[%clk 0:00:18]} 36. Qf5+ {[%clk 0:00:04]}  Rcg6 {[%clk 0:00:17]} 37. Qf8 {[%clk 0:00:02]}  Rxg3 {[%clk 0:00:16]} 38. Rf7 {[%clk 0:00:03]}  Rxg2+ {[%clk 0:00:16]} 39. Kf1 {[%clk 0:00:03]}  Rg1+ {[%clk 0:00:14]} 40. Ke2 {[%clk 0:00:03]}  Rg2+ {[%clk 0:00:14]} 41. Ke3 {[%clk 0:00:03]}  b3 {[%clk 0:00:10]} 42. cxb3 {[%clk 0:00:03]}  Rg3+ {[%clk 0:00:09]} 43. Kd4 {[%clk 0:00:03]}  Rg4 {[%clk 0:00:10]} 44. Ke3 {[%clk 0:00:03]}  h5 {[%clk 0:00:10]} 45. Rxg7+ {[%clk 0:00:03]}  Rxg7 {[%clk 0:00:11]} 46. Qf5+ {[%clk 0:00:04]}  Kh6 {[%clk 0:00:12]} 47. Qf6+ {[%clk 0:00:04]}  Rg6 {[%clk 0:00:10]} 48. Qf8+ {[%clk 0:00:05]}  Rg7 {[%clk 0:00:07]} 49. Qh8+ {[%clk 0:00:04]}  Kg6 {[%clk 0:00:07]} 50. Qe8+ {[%clk 0:00:04]}  Kh6 {[%clk 0:00:08]} 51. Qh8+ {[%clk 0:00:04]}  Kg6 {[%clk 0:00:08]} 52. Qe8+ {[%clk 0:00:04]}  Kh6 {[%clk 0:00:09]} 53. Qh8+ {[%clk 0:00:05]} 1/2-1/2

[Event "January 9 Early 2024"]
[Site "https://www.chess.com"]
[Date "2024.01.11"]
[Round "3"]
[White "Makaraci, Tunahan"]
[Black "Bindrich, Falko"]
[Result "1/2-1/2"]
[Board "298"]
[TimeControl "180+1"]
[WhiteFideId "6356559"]
[BlackFideId "4676670"]
[WhiteElo "2554"]
[BlackElo "2811"]
[WhiteTeam "TUR"]
[BlackTeam "GER"]
[WhiteClock "0:00:06"]
[BlackClock "0:00:16"]

1. e4 {[%clk 0:03:00]}  e5 {[%clk 0:02:59]} 2. Nc3 {[%clk 0:03:00]}  Nc6 {[%clk 0:02:59]} 3. f4 {[%clk 0:03:00]}  exf4 {[%clk 0:02:58]} 4. Nf3 {[%clk 0:03:00]}  Nf6 {[%clk 0:02:58]} 5. d4 {[%clk 0:02:56]}  d5 {[%clk 0:02:58]} 6. exd5 {[%clk 0:02:52]}  Nxd5 {[%clk 0:02:58]} 7. Nxd5 {[%clk 0:02:51]}  Qxd5 {[%clk 0:02:59]} 8. Bxf4 {[%clk 0:02:51]}  Bd6 {[%clk 0:02:57]} 9. Bxd6 {[%clk 0:02:51]}  Qxd6 {[%clk 0:02:57]} 10. Bd3 {[%clk 0:02:50]}  O-O {[%clk 0:02:57]} 11. O-O {[%clk 0:02:46]}  Nxd4 {[%clk 0:02:52]} 12. Bxh7+ {[%clk 0:02:45]}  Kxh7 {[%clk 0:02:53]} 13. Qxd4 {[%clk 0:02:42]}  Qxd4+ {[%clk 0:02:52]} 14. Nxd4 {[%clk 0:02:43]}  Bd7 {[%clk 0:02:52]} 15. Rad1 {[%clk 0:02:38]}  Rae8 {[%clk 0:02:52]} 16. Rfe1 {[%clk 0:02:37]}  Kg6 {[%clk 0:02:39]} 17. Kf2 {[%clk 0:02:37]}  Kf6 {[%clk 0:02:37]} 18. b4 {[%clk 0:02:27]}  Rh8 {[%clk 0:02:35]} 19. h3 {[%clk 0:02:24]}  Rxe1 {[%clk 0:02:26]} 20. Rxe1 {[%clk 0:02:24]}  Rh4 {[%clk 0:02:26]} 21. c3 {[%clk 0:02:20]}  Rh5 {[%clk 0:02:27]} 22. Nb3 {[%clk 0:02:05]}  b6 {[%clk 0:02:25]} 23. a3 {[%clk 0:02:01]}  c5 {[%clk 0:02:18]} 24. Re3 {[%clk 0:01:56]}  Rd5 {[%clk 0:02:03]} 25. Rf3+ {[%clk 0:01:31]}  Ke7 {[%clk 0:01:58]} 26. Re3+ {[%clk 0:01:27]}  Kd6 {[%clk 0:01:56]} 27. Ke1 {[%clk 0:01:17]}  Ba4 {[%clk 0:01:16]} 28. Nd2 {[%clk 0:01:17]}  Kd7 {[%clk 0:01:11]} 29. Nc4 {[%clk 0:01:09]}  f6 {[%clk 0:01:07]} 30. Nd2 {[%clk 0:01:01]}  Bc2 {[%clk 0:00:58]} 31. Ke2 {[%clk 0:00:56]}  b5 {[%clk 0:00:40]} 32. Ne4 {[%clk 0:00:48]}  Bxe4 {[%clk 0:00:28]} 33. Rxe4 {[%clk 0:00:49]}  g5 {[%clk 0:00:28]} 34. g3 {[%clk 0:00:47]}  Kd6 {[%clk 0:00:27]} 35. h4 {[%clk 0:00:45]}  f5 {[%clk 0:00:24]} 36. Re8 {[%clk 0:00:43]}  Kd7 {[%clk 0:00:24]} 37. Rg8 {[%clk 0:00:38]}  gxh4 {[%clk 0:00:25]} 38. gxh4 {[%clk 0:00:38]}  cxb4 {[%clk 0:00:25]} 39. axb4 {[%clk 0:00:31]}  f4 {[%clk 0:00:26]} 40. Rg7+ {[%clk 0:00:30]}  Ke6 {[%clk 0:00:25]} 41. Rxa7 {[%clk 0:00:28]}  Rh5 {[%clk 0:00:23]} 42. Rb7 {[%clk 0:00:27]}  Kd6 {[%clk 0:00:19]} 43. Kd3 {[%clk 0:00:20]}  Kc6 {[%clk 0:00:19]} 44. Rb8 {[%clk 0:00:20]}  Rxh4 {[%clk 0:00:19]} 45. Ke4 {[%clk 0:00:16]}  Rg4 {[%clk 0:00:14]} 46. Rf8 {[%clk 0:00:15]}  Rg3 {[%clk 0:00:11]} 47. Rf6+ {[%clk 0:00:12]}  Kd7 {[%clk 0:00:11]} 48. Kd4 {[%clk 0:00:07]}  f3 {[%clk 0:00:10]} 49. Ke3 {[%clk 0:00:08]}  f2+ {[%clk 0:00:11]} 50. Kxf2 {[%clk 0:00:08]}  Rxc3 {[%clk 0:00:12]} 51. Rf4 {[%clk 0:00:07]}  Kd6 {[%clk 0:00:11]} 52. Ke2 {[%clk 0:00:07]}  Ke5 {[%clk 0:00:12]} 53. Rh4 {[%clk 0:00:07]}  Rg3 {[%clk 0:00:12]} 54. Kd2 {[%clk 0:00:07]}  Kd5 {[%clk 0:00:12]} 55. Kc2 {[%clk 0:00:06]}  Rf3 {[%clk 0:00:13]} 56. Kd2 {[%clk 0:00:06]}  Rb3 {[%clk 0:00:13]} 57. Kc2 {[%clk 0:00:06]}  Rg3 {[%clk 0:00:13]} 58. Kd2 {[%clk 0:00:07]}  Rf3 {[%clk 0:00:13]} 59. Kc2 {[%clk 0:00:07]}  Rf2+ {[%clk 0:00:14]} 60. Kd3 {[%clk 0:00:07]}  Rf3+ {[%clk 0:00:13]} 61. Kc2 {[%clk 0:00:07]}  Ra3 {[%clk 0:00:13]} 62. Kb2 {[%clk 0:00:07]}  Ra8 {[%clk 0:00:13]} 63. Kc2 {[%clk 0:00:07]}  Rc8+ {[%clk 0:00:13]} 64. Kd3 {[%clk 0:00:06]}  Rd8 {[%clk 0:00:13]} 65. Rh5+ {[%clk 0:00:06]}  Kc6+ {[%clk 0:00:14]} 66. Kc3 {[%clk 0:00:05]}  Rg8 {[%clk 0:00:14]} 67. Rh6+ {[%clk 0:00:05]}  Kd5 {[%clk 0:00:15]} 68. Rh5+ {[%clk 0:00:05]}  Kc6 {[%clk 0:00:16]} 69. Rh6+ {[%clk 0:00:06]}  Kc7 {[%clk 0:00:16]} 70. Rh7+ {[%clk 0:00:06]}  Kc6 {[%clk 0:00:16]} 71. Rh6+ {[%clk 0:00:06]} 1/2-1/2

[Event "January 9 Early 2024"]
[Site "https://www.chess.com"]
[Date "2024.01.11"]
[Round "3"]
[White "Putri, Regita Desyari"]
[Black "Khamdamova, Afruza"]
[Result "0-1"]
[Board "300"]
[TimeControl "180+1"]
[WhiteFideId "7109083"]
[BlackFideId "14210444"]
[WhiteElo "2212"]
[BlackElo "2540"]
[WhiteTeam "INA"]
[BlackTeam "UZB"]
[WhiteClock "0:00:06"]
[BlackClock "0:00:06"]

1. e4 {[%clk 0:03:00]}  e5 {[%clk 0:02:59]} 2. Nf3 {[%clk 0:02:59]}  Nc6 {[%clk 0:02:59]} 3. Bb5 {[%clk 0:02:59]}  a6 {[%clk 0:02:58]} 4. Ba4 {[%clk 0:03:00]}  Nf6 {[%clk 0:02:57]} 5. O-O {[%clk 0:03:00]}  Be7 {[%clk 0:02:56]} 6. Re1 {[%clk 0:02:59]}  b5 {[%clk 0:02:55]} 7. Bb3 {[%clk 0:03:00]}  O-O {[%clk 0:02:54]} 8. a4 {[%clk 0:02:58]}  Rb8 {[%clk 0:02:51]} 9. c3 {[%clk 0:02:48]}  d6 {[%clk 0:02:49]} 10. h3 {[%clk 0:02:47]}  h6 {[%clk 0:02:39]} 11. axb5 {[%clk 0:02:40]}  axb5 {[%clk 0:02:38]} 12. d4 {[%clk 0:02:40]}  exd4 {[%clk 0:02:01]} 13. cxd4 {[%clk 0:02:41]}  d5 {[%clk 0:02:00]} 14. e5 {[%clk 0:02:29]}  Ne4 {[%clk 0:01:59]} 15. Nc3 {[%clk 0:02:17]}  Nxc3 {[%clk 0:01:43]} 16. bxc3 {[%clk 0:02:18]}  Be6 {[%clk 0:01:42]} 17. Be3 {[%clk 0:01:18]}  Qd7 {[%clk 0:01:37]} 18. Nd2 {[%clk 0:01:09]}  Rfd8 {[%clk 0:00:52]} 19. f4 {[%clk 0:00:56]}  Bh4 {[%clk 0:00:48]} 20. Rf1 {[%clk 0:00:54]}  Bf5 {[%clk 0:00:44]} 21. Nf3 {[%clk 0:00:29]}  Be7 {[%clk 0:00:42]} 22. g4 {[%clk 0:00:29]}  Be4 {[%clk 0:00:40]} 23. Bc2 {[%clk 0:00:27]}  b4 {[%clk 0:00:37]} 24. cxb4 {[%clk 0:00:21]}  Nxb4 {[%clk 0:00:30]} 25. Ba4 {[%clk 0:00:21]}  c6 {[%clk 0:00:28]} 26. Ne1 {[%clk 0:00:21]}  Bh4 {[%clk 0:00:19]} 27. f5 {[%clk 0:00:20]}  Bxe1 {[%clk 0:00:18]} 28. Qxe1 {[%clk 0:00:21]}  Nd3 {[%clk 0:00:18]} 29. Qh4 {[%clk 0:00:20]}  Rb2 {[%clk 0:00:12]} 30. Bf2 {[%clk 0:00:20]}  Ra8 {[%clk 0:00:09]} 31. f6 {[%clk 0:00:19]}  Nxf2 {[%clk 0:00:10]} 32. Rxf2 {[%clk 0:00:18]}  Rxf2 {[%clk 0:00:10]} 33. Kxf2 {[%clk 0:00:19]}  Qb7 {[%clk 0:00:10]} 34. Ra2 {[%clk 0:00:14]}  Qb1 {[%clk 0:00:10]} 35. Re2 {[%clk 0:00:05]}  Rxa4 {[%clk 0:00:10]} 36. fxg7 {[%clk 0:00:06]}  Qh1 {[%clk 0:00:09]} 37. Qd8+ {[%clk 0:00:05]}  Kxg7 {[%clk 0:00:09]} 38. Qf6+ {[%clk 0:00:06]}  Kg8 {[%clk 0:00:10]} 39. Qd8+ {[%clk 0:00:06]}  Kh7 {[%clk 0:00:10]} 40. Qf6 {[%clk 0:00:06]}  Qg2+ {[%clk 0:00:10]} 41. Ke3 {[%clk 0:00:06]}  Ra3+ {[%clk 0:00:09]} 42. Kd2 {[%clk 0:00:07]}  Ra2+ {[%clk 0:00:09]} 43. Kc3 {[%clk 0:00:07]}  Qg3+ {[%clk 0:00:08]} 44. Kb4 {[%clk 0:00:07]}  Ra7 {[%clk 0:00:04]} 45. Kc5 {[%clk 0:00:05]}  Qc3+ {[%clk 0:00:03]} 46. Kd6 {[%clk 0:00:05]}  Qb4+ {[%clk 0:00:03]} 47. Kxc6 {[%clk 0:00:05]}  Ra6+ {[%clk 0:00:03]} 48. Kd7 {[%clk 0:00:06]}  Rxf6 {[%clk 0:00:04]} 49. exf6 {[%clk 0:00:07]}  Qb7+ {[%clk 0:00:04]} 50. Ke8 {[%clk 0:00:08]}  Qc6+ {[%clk 0:00:04]} 51. Ke7 {[%clk 0:00:07]}  Bg6 {[%clk 0:00:04]} 52. Re5 {[%clk 0:00:07]}  Qc4 {[%clk 0:00:05]} 53. Kd6 {[%clk 0:00:05]}  Qxd4 {[%clk 0:00:05]} 54. Rxd5 {[%clk 0:00:06]}  Qe3 {[%clk 0:00:06]} 0-1

[Event "January 9 Early 2024"]
[Site "https://www.chess.com"]
[Date "2024.01.11"]
[Round "3"]
[White "Mizzi, Jack"]
[Black "Krallis, Christos"]
[Result "1-0"]
[Board "302"]
[TimeControl "180+1"]
[WhiteFideId "5602521"]
[BlackFideId "4298896"]
[WhiteElo "2489"]
[BlackElo "2664"]
[WhiteTeam "MLT"]
[BlackTeam "GRE"]
[WhiteClock "0:00:10"]
[BlackClock "0:00:03"]

1. d4 {[%clk 0:03:00]}  b6 {[%clk 0:02:55]} 2. Nf3 {[%clk 0:02:59]}  Bb7 {[%clk 0:02:55]} 3. g3 {[%clk 0:02:59]}  Nf6 {[%clk 0:02:51]} 4. Bg2 {[%clk 0:02:59]}  g6 {[%clk 0:02:51]} 5. O-O {[%clk 0:03:00]}  Bg7 {[%clk 0:02:52]} 6. c4 {[%clk 0:03:00]}  O-O {[%clk 0:02:52]} 7. Nc3 {[%clk 0:03:00]}  e6 {[%clk 0:02:51]} 8. Qc2 {[%clk 0:03:01]}  c5 {[%clk 0:02:51]} 9. dxc5 {[%clk 0:02:59]}  bxc5 {[%clk 0:02:52]} 10. Rd1 {[%clk 0:02:58]}  Nc6 {[%clk 0:02:52]} 11. Nb5 {[%clk 0:02:58]}  Ne8 {[%clk 0:02:50]} 12. Bg5 {[%clk 0:02:54]}  Qb6 {[%clk 0:02:49]} 13. Rxd7 {[%clk 0:02:49]}  a6 {[%clk 0:02:40]} 14. Nc3 {[%clk 0:02:49]}  Nd4 {[%clk 0:02:36]} 15. Rxb7 {[%clk 0:01:51]}  Nxc2 {[%clk 0:02:20]} 16. Rxb6 {[%clk 0:01:50]}  Nxa1 {[%clk 0:02:20]} 17. Be7 {[%clk 0:01:41]}  Nc7 {[%clk 0:02:05]} 18. Bxf8 {[%clk 0:01:36]}  Kxf8 {[%clk 0:02:05]} 19. Rb7 {[%clk 0:01:29]}  Rc8 {[%clk 0:02:04]} 20. Na4 {[%clk 0:01:25]}  Ne8 {[%clk 0:01:52]} 21. Ng5 {[%clk 0:01:20]}  Rc7 {[%clk 0:01:48]} 22. Rb8 {[%clk 0:01:11]}  Ke7 {[%clk 0:01:37]} 23. Ne4 {[%clk 0:01:08]}  Nd6 {[%clk 0:01:37]} 24. Nxd6 {[%clk 0:01:05]}  Kxd6 {[%clk 0:01:32]} 25. Rb6+ {[%clk 0:01:05]}  Ke7 {[%clk 0:01:30]} 26. Rxa6 {[%clk 0:01:05]}  Nc2 {[%clk 0:01:28]} 27. a3 {[%clk 0:01:00]}  Nd4 {[%clk 0:01:18]} 28. e3 {[%clk 0:00:58]}  Nb3 {[%clk 0:01:17]} 29. Rb6 {[%clk 0:00:52]}  Nd2 {[%clk 0:01:16]} 30. b3 {[%clk 0:00:47]}  Nb1 {[%clk 0:00:58]} 31. Bc6 {[%clk 0:00:40]}  Nxa3 {[%clk 0:00:49]} 32. Nxc5 {[%clk 0:00:37]}  Nb1 {[%clk 0:00:40]} 33. Na6 {[%clk 0:00:36]}  Ra7 {[%clk 0:00:39]} 34. c5 {[%clk 0:00:32]}  Nd2 {[%clk 0:00:30]} 35. b4 {[%clk 0:00:30]}  Nc4 {[%clk 0:00:30]} 36. Rb7+ {[%clk 0:00:30]}  Rxb7 {[%clk 0:00:30]} 37. Bxb7 {[%clk 0:00:31]}  Kd8 {[%clk 0:00:29]} 38. f4 {[%clk 0:00:27]}  Bf8 {[%clk 0:00:28]} 39. e4 {[%clk 0:00:26]}  e5 {[%clk 0:00:28]} 40. Bd5 {[%clk 0:00:23]}  Nd2 {[%clk 0:00:24]} 41. Kf2 {[%clk 0:00:22]}  f6 {[%clk 0:00:22]} 42. Ke2 {[%clk 0:00:21]}  Nb1 {[%clk 0:00:21]} 43. Kd3 {[%clk 0:00:21]}  Na3 {[%clk 0:00:20]} 44. Bc6 {[%clk 0:00:18]}  g5 {[%clk 0:00:18]} 45. f5 {[%clk 0:00:18]}  h5 {[%clk 0:00:18]} 46. h3 {[%clk 0:00:17]}  g4 {[%clk 0:00:17]} 47. hxg4 {[%clk 0:00:17]}  hxg4 {[%clk 0:00:17]} 48. b5 {[%clk 0:00:17]}  Bxc5 {[%clk 0:00:10]} 49. Nxc5 {[%clk 0:00:18]}  Kc7 {[%clk 0:00:11]} 50. Na4 {[%clk 0:00:16]}  Nb1 {[%clk 0:00:10]} 51. Be8 {[%clk 0:00:15]}  Na3 {[%clk 0:00:09]} 52. Nc5 {[%clk 0:00:15]}  Kb6 {[%clk 0:00:08]} 53. Ne6 {[%clk 0:00:11]}  Nb1 {[%clk 0:00:06]} 54. Ng7 {[%clk 0:00:11]}  Na3 {[%clk 0:00:06]} 55. Nh5 {[%clk 0:00:11]}  Kc7 {[%clk 0:00:06]} 56. Nxf6 {[%clk 0:00:11]}  Kd8 {[%clk 0:00:07]} 57. Bc6 {[%clk 0:00:11]}  Ke7 {[%clk 0:00:08]} 58. Nd5+ {[%clk 0:00:12]}  Kd6 {[%clk 0:00:09]} 59. f6 {[%clk 0:00:12]}  Ke6 {[%clk 0:00:09]} 60. Be8 {[%clk 0:00:11]}  Nb1 {[%clk 0:00:03]} 61. f7 {[%clk 0:00:12]}  Nd2 {[%clk 0:00:03]} 62. Kxd2 {[%clk 0:00:10]} 1-0